fUSD/lending_fUSD_20260630
["ID","MTS","AMOUNT","RATE_DAILY","PERIOD"]
[426751991,1782779459000,-404.565709,0.00035616,30]
[426751992,1782779459000,-151.0,0.00035616,30]
[426751988,1782779459000,-404.565709,0.00035616,30]
[426751993,1782779459000,-4274.489557,0.00035616,30]
[426751996,1782779459000,-404.565709,0.00035616,30]
[426751998,1782779459000,-1780.914314,0.00035616,30]
[426751997,1782779459000,-151.0,0.00035616,30]
[426751999,1782779459000,-266.248196,0.00035616,30]
[426752001,1782779459000,-151.0,0.00035616,30]
[426752000,1782779459000,-404.565709,0.00035616,30]
[426752032,1782779459000,-151.0,0.00035616,30]
[426751985,1782779459000,-151.0,0.00035616,30]
[426752044,1782779459000,-202.743987,0.00035616,30]
[426752060,1782779459000,-213.943681,0.00035616,30]
[426752066,1782779459000,-151.0,0.00035616,30]
[426752067,1782779459000,-4623.96722,0.00035616,30]
[426752065,1782779459000,-151.0,0.00035616,30]
[426752063,1782779459000,-4623.96722,0.00035616,30]
[426752061,1782779459000,-151.0,0.00035616,30]
[426752064,1782779459000,-213.943681,0.00035616,30]
[426752068,1782779459000,-213.943681,0.00035616,30]
[426752072,1782779459000,-1312.997201,0.00035616,30]
[426752074,1782779459000,-1293.298744,0.00035616,30]
[426752075,1782779459000,-1312.997201,0.00035616,30]
[426752073,1782779459000,-1071.291364,0.00035616,30]
[426752071,1782779459000,-1293.298744,0.00035616,30]
[426752078,1782779459000,-1293.298744,0.00035616,30]
[426752077,1782779459000,-1071.291364,0.00035616,30]
[426752076,1782779459000,-5376.721794,0.00035616,30]
[426752080,1782779459000,-5376.721794,0.00035616,30]
[426752084,1782779459000,-1071.291364,0.00035616,30]
[426752085,1782779459000,-5376.721794,0.00035616,30]
[426752083,1782779459000,-1312.997201,0.00035616,30]
[426752081,1782779459000,-1071.291364,0.00035616,30]
[426752087,1782779459000,-156.530422,0.00035616,30]
[426752082,1782779459000,-5376.721794,0.00035616,30]
[426752086,1782779459000,-156.530422,0.00035616,30]
[426752088,1782779459000,-151.0,0.00035616,30]
[426752089,1782779459000,-156.530422,0.00035616,30]
[426752042,1782779459000,-202.743987,0.00035616,30]
[426752062,1782779459000,-151.0,0.00035616,30]
[426752079,1782779459000,-1312.997201,0.00035616,30]
[426752070,1782779459000,-213.943681,0.00035616,30]
[426752043,1782779459000,-151.0,0.00035616,30]
[426752058,1782779459000,-4623.96722,0.00035616,30]
[426752038,1782779459000,-630.160722,0.00035616,7]
[426752034,1782779459000,-151.0,0.00035616,30]
[426752033,1782779459000,-151.0,0.00035616,30]
[426752035,1782779459000,-879.123218,0.00035616,7]
[426752036,1782779459000,-151.0,0.00035616,30]
[426752040,1782779459000,-630.160722,0.00035616,7]
[426752041,1782779459000,-630.160722,0.00035616,7]
[426752037,1782779459000,-151.0,0.00035616,30]
[426752039,1782779459000,-630.160722,0.00035616,7]
[426752046,1782779459000,-151.0,0.00035616,30]
[426752057,1782779459000,-151.0,0.00035616,30]
[426752031,1782779459000,-879.123218,0.00035616,7]
[426752053,1782779459000,-151.0,0.00035616,30]
[426752056,1782779459000,-170.994797,0.00035616,30]
[426752050,1782779459000,-3701.167344,0.00035616,30]
[426752047,1782779459000,-202.743987,0.00035616,30]
[426752045,1782779459000,-3701.167344,0.00035616,30]
[426752059,1782779459000,-151.0,0.00035616,30]
[426752048,1782779459000,-3701.167344,0.00035616,30]
[426752049,1782779459000,-202.743987,0.00035616,30]
[426752055,1782779459000,-151.0,0.00035616,30]
[426752051,1782779459000,-3701.167344,0.00035616,30]
[426752054,1782779459000,-4623.96722,0.00035616,30]
[426752052,1782779459000,-151.0,0.00035616,30]
[426752069,1782779459000,-1293.298744,0.00035616,30]
[426752137,1782779460000,-1502.312856,0.00035616,30]
[426752115,1782779460000,-5839.153419,0.00035616,30]
[426752136,1782779460000,-492.080444,0.00035616,30]
[426752129,1782779460000,-151.0,0.00035616,30]
[426752134,1782779460000,-1502.312856,0.00035616,30]
[426752135,1782779460000,-17160.912325,0.00035616,30]
[426752117,1782779460000,-5839.153419,0.00035616,30]
[426752126,1782779460000,-5839.153419,0.00035616,30]
[426752112,1782779460000,-151.0,0.00035616,30]
[426752116,1782779460000,-1705.19914,0.00035616,30]
[426752131,1782779460000,-168.993623,0.00035616,30]
[426752125,1782779460000,-151.0,0.00035616,30]
[426752130,1782779460000,-1502.312856,0.00035616,30]
[426752149,1782779460000,-155.180973,0.00035616,30]
[426752128,1782779460000,-492.080444,0.00035616,30]
[426752133,1782779460000,-151.0,0.00035616,30]
[426752132,1782779460000,-492.080444,0.00035616,30]
[426752138,1782779460000,-17160.912325,0.00035616,30]
[426752140,1782779460000,-17160.912325,0.00035616,30]
[426752141,1782779460000,-151.0,0.00035616,30]
[426752142,1782779460000,-155.180973,0.00035616,30]
[426752143,1782779460000,-206.275724,0.00035616,30]
[426752146,1782779460000,-155.180973,0.00035616,30]
[426752148,1782779460000,-274.575556,0.00035616,30]
[426752139,1782779460000,-155.180973,0.00035616,30]
[426752145,1782779460000,-17160.912325,0.00035616,30]
[426752114,1782779460000,-158.593475,0.00035616,30]
[426752127,1782779460000,-151.0,0.00035616,30]
[426752113,1782779460000,-1558.167375,0.00035616,30]
[426752090,1782779460000,-828.426999,0.00035616,30]
[426752124,1782779460000,-492.080444,0.00035616,30]
[426752091,1782779460000,-151.0,0.00035616,30]
[426752147,1782779460000,-206.275724,0.00035616,30]
[426752093,1782779460000,-828.426999,0.00035616,30]
[426752099,1782779460000,-374.877929,0.00035616,30]
[426752096,1782779460000,-2208.721779,0.00035616,30]
[426752095,1782779460000,-828.426999,0.00035616,30]
[426752092,1782779460000,-156.530422,0.00035616,30]
[426752094,1782779460000,-828.426999,0.00035616,30]
[426752098,1782779460000,-2208.721779,0.00035616,30]
[426752097,1782779460000,-2208.721779,0.00035616,30]
[426752101,1782779460000,-374.877929,0.00035616,30]
[426752100,1782779460000,-2208.721779,0.00035616,30]
[426752111,1782779460000,-1705.19914,0.00035616,30]
[426752102,1782779460000,-374.877929,0.00035616,30]
[426752103,1782779460000,-1558.167375,0.00035616,30]
[426752105,1782779460000,-1558.167375,0.00035616,30]
[426752107,1782779460000,-158.593475,0.00035616,30]
[426752104,1782779460000,-374.877929,0.00035616,30]
[426752106,1782779460000,-1705.19914,0.00035616,30]
[426752110,1782779460000,-1558.167375,0.00035616,30]
[426752109,1782779460000,-151.0,0.00035616,30]
[426752108,1782779460000,-151.0,0.00035616,15]
[426752118,1782779460000,-158.593475,0.00035616,30]
[426752119,1782779460000,-1705.19914,0.00035616,30]
[426752122,1782779460000,-158.593475,0.00035616,30]
[426752121,1782779460000,-5839.153419,0.00035616,30]
[426752123,1782779460000,-1502.312856,0.00035616,30]
[426752120,1782779460000,-151.0,0.00035616,30]
[426752144,1782779460000,-151.0,0.00035616,30]
[426752200,1782779460000,-677.261571,0.00035616,30]
[426752150,1782779460000,-1105.266591,0.00035616,30]
[426752181,1782779460000,-677.261571,0.00035616,30]
[426752182,1782779460000,-1400.018154,0.00035616,30]
[426752185,1782779460000,-183.82229,0.00035616,30]
[426752194,1782779460000,-183.82229,0.00035616,30]
[426752192,1782779460000,-151.0,0.00035616,30]
[426752190,1782779460000,-165.035682,0.00035616,30]
[426752195,1782779460000,-677.261571,0.00035616,30]
[426752189,1782779460000,-189.166298,0.00035616,30]
[426752197,1782779460000,-165.035682,0.00035616,30]
[426752188,1782779460000,-183.82229,0.00035616,30]
[426752187,1782779460000,-677.261571,0.00035616,30]
[426752196,1782779460000,-189.166298,0.00035616,30]
[426752186,1782779460000,-1400.018154,0.00035616,30]
[426752191,1782779460000,-249.603525,0.00035616,7]
[426752193,1782779460000,-1400.018154,0.00035616,30]
[426752199,1782779460000,-249.603525,0.00035616,7]
[426752209,1782779460000,-151.0,0.00035616,30]
[426752198,1782779460000,-151.0,0.00035616,30]
[426752201,1782779460000,-183.82229,0.00035616,30]
[426752210,1782779460000,-206.676237,0.00035616,30]
[426752202,1782779460000,-165.035682,0.00035616,30]
[426752205,1782779460000,-165.035682,0.00035616,30]
[426752204,1782779460000,-151.0,0.00035616,30]
[426752203,1782779460000,-249.603525,0.00035616,7]
[426752206,1782779460000,-249.603525,0.00035616,7]
[426752207,1782779460000,-151.0,0.00035616,30]
[426752151,1782779460000,-206.275724,0.00035616,30]
[426752177,1782779460000,-791.247062,0.00035616,30]
[426752179,1782779460000,-1400.018154,0.00035616,30]
[426752208,1782779460000,-151.0,0.00035616,30]
[426752180,1782779460000,-189.166298,0.00035616,30]
[426752178,1782779460000,-791.247062,0.00035616,30]
[426752160,1782779460000,-310.2,0.00035616,30]
[426752154,1782779460000,-206.275724,0.00035616,30]
[426752152,1782779460000,-1105.266591,0.00035616,30]
[426752159,1782779460000,-1799.170193,0.00035616,30]
[426752157,1782779460000,-1105.266591,0.00035616,30]
[426752156,1782779460000,-1799.170193,0.00035616,30]
[426752158,1782779460000,-1799.170193,0.00035616,30]
[426752153,1782779460000,-1799.170193,0.00035616,30]
[426752162,1782779460000,-482.147791,0.00035616,30]
[426752164,1782779460000,-310.2,0.00035616,30]
[426752161,1782779460000,-310.2,0.00035616,30]
[426752163,1782779460000,-1649.36794,0.00035616,7]
[426752155,1782779460000,-1105.266591,0.00035616,30]
[426752171,1782779460000,-1939.673146,0.00035616,30]
[426752176,1782779460000,-1939.673146,0.00035616,30]
[426752175,1782779460000,-1939.673146,0.00035616,30]
[426752172,1782779460000,-1649.36794,0.00035616,7]
[426752174,1782779460000,-791.247062,0.00035616,30]
[426752170,1782779460000,-482.147791,0.00035616,30]
[426752183,1782779460000,-791.247062,0.00035616,30]
[426752184,1782779460000,-189.166298,0.00035616,30]
[426752167,1782779460000,-1939.673146,0.00035616,30]
[426752168,1782779460000,-310.2,0.00035616,30]
[426752166,1782779460000,-482.147791,0.00035616,30]
[426752165,1782779460000,-1649.36794,0.00035616,7]
[426752169,1782779460000,-1649.36794,0.00035616,7]
[426752173,1782779460000,-482.147791,0.00035616,30]
[426752257,1782779461000,-2969.7411031,0.00035918,2]
[426752249,1782779461000,-2336.0,0.00035875,11]
[426752247,1782779461000,-350.0,0.00035807,2]
[426752248,1782779461000,-160.0,0.00035875,11]
[426752240,1782779461000,-151.0,0.0003575,2]
[426752244,1782779461000,-160.0,0.00035787,11]
[426752243,1782779461000,-193.0,0.0003578,120]
[426752241,1782779461000,-151.0,0.0003575,2]
[426752242,1782779461000,-151.0,0.0003575,2]
[426752239,1782779461000,-482.44,0.0003575,2]
[426752246,1782779461000,-2336.0,0.00035795,11]
[426752253,1782779461000,-2336.0,0.00035894,11]
[426752254,1782779461000,-1777.538901,0.000359,30]
[426752258,1782779461000,-57567.41622102,0.00035918,2]
[426752255,1782779461000,-275.52,0.000359,98]
[426752251,1782779461000,-160.0,0.00035894,11]
[426752252,1782779461000,-2336.0,0.00035894,11]
[426752256,1782779461000,-2500.0,0.000359,13]
[426752260,1782779461000,-151.0,0.00035942,14]
[426752270,1782779461000,-747.0,0.0003599,120]
[426752259,1782779461000,-331.62500001,0.00035927,120]
[426752263,1782779461000,-1072.02,0.00035945,15]
[426752262,1782779461000,-50000.0,0.00035945,15]
[426752234,1782779461000,-2336.0,0.0003572,11]
[426752264,1782779461000,-900.0618315,0.00035951,2]
[426752250,1782779461000,-2336.0,0.00035894,11]
[426752236,1782779461000,-1221.11335851,0.00035739,2]
[426752224,1782779461000,-151.0,0.0003568,14]
[426752245,1782779461000,-160.0,0.00035795,11]
[426752269,1782779461000,-812.0,0.0003599,120]
[426752211,1782779461000,-498.589728,0.00035616,30]
[426752213,1782779461000,-151.0,0.00035616,30]
[426752214,1782779461000,-206.676237,0.00035616,30]
[426752212,1782779461000,-151.0,0.00035616,30]
[426752217,1782779461000,-181.336464,0.00035617,120]
[426752218,1782779461000,-162.776462,0.00035617,120]
[426752221,1782779461000,-628.24549405,0.00035672,120]
[426752215,1782779461000,-151.0,0.00035616,30]
[426752219,1782779461000,-160.0,0.00035638,11]
[426752220,1782779461000,-1230.0,0.00035659,2]
[426752216,1782779461000,-9131.0,0.00035616,5]
[426752222,1782779461000,-160.0,0.00035679,11]
[426752223,1782779461000,-2336.0,0.00035679,11]
[426752225,1782779461000,-513.8861849,0.00035684,60]
[426752226,1782779461000,-690544.219,0.00035684,30]
[426752227,1782779461000,-2577.45659222,0.00035685,7]
[426752228,1782779461000,-643.36414831,0.00035685,7]
[426752230,1782779461000,-225.18,0.000357,30]
[426752229,1782779461000,-2336.0,0.00035691,11]
[426752231,1782779461000,-374.8,0.000357,7]
[426752233,1782779461000,-150.0,0.00035702,2]
[426752232,1782779461000,-326.59,0.000357,30]
[426752235,1782779461000,-357.61,0.00035729,3]
[426752238,1782779461000,-305.9,0.0003575,2]
[426752237,1782779461000,-160.0,0.00035746,11]
[426752266,1782779461000,-391.6,0.00035973,10]
[426752267,1782779461000,-813.97,0.0003598,120]
[426752265,1782779461000,-200.0,0.00035953,2]
[426752299,1782779461000,-10045.0,0.00036,106]
[426752301,1782779461000,-2000.0,0.00036,2]
[426752300,1782779461000,-800.0,0.00036,7]
[426752306,1782779461000,-158.885528,0.00036,30]
[426752302,1782779461000,-1221.11335851,0.00036,2]
[426752305,1782779461000,-158.885528,0.00036,30]
[426752304,1782779461000,-158.885528,0.00036,30]
[426752308,1782779461000,-158.885528,0.00036,30]
[426752310,1782779461000,-151.0,0.00036,30]
[426752309,1782779461000,-178.137689,0.00036,30]
[426752307,1782779461000,-151.0,0.00036,30]
[426752312,1782779461000,-162.698519,0.00036,30]
[426752303,1782779461000,-151.0,0.00036,30]
[426752313,1782779461000,-151.0,0.00036,30]
[426752325,1782779461000,-151.0,0.00036,30]
[426752316,1782779461000,-162.698519,0.00036,30]
[426752315,1782779461000,-158.56,0.00036,30]
[426752318,1782779461000,-178.137689,0.00036,30]
[426752321,1782779461000,-158.56,0.00036,30]
[426752320,1782779461000,-151.0,0.00036,30]
[426752317,1782779461000,-151.0,0.00036,30]
[426752319,1782779461000,-151.0,0.00036,30]
[426752324,1782779461000,-158.56,0.00036,30]
[426752323,1782779461000,-151.0,0.00036,30]
[426752322,1782779461000,-162.698519,0.00036,30]
[426752261,1782779461000,-1285.80261643,0.00035944,2]
[426752314,1782779461000,-178.137689,0.00036,30]
[426752298,1782779461000,-283.0,0.00036,2]
[426752311,1782779461000,-178.137689,0.00036,30]
[426752293,1782779461000,-1000.0,0.00036,120]
[426752297,1782779461000,-549.36055093,0.00036,120]
[426752268,1782779461000,-756.32,0.0003598,120]
[426752271,1782779461000,-191.11,0.00035993,60]
[426752273,1782779461000,-50000.0,0.00036,30]
[426752282,1782779461000,-500.0,0.00036,120]
[426752274,1782779461000,-100000.0,0.00036,30]
[426752275,1782779461000,-2456.35495591,0.00036,14]
[426752283,1782779461000,-50000.0,0.00036,60]
[426752272,1782779461000,-160.0,0.00035999,11]
[426752279,1782779461000,-300000.0,0.00036,3]
[426752277,1782779461000,-21438.0808587,0.00036,2]
[426752281,1782779461000,-199.95381872,0.00036,120]
[426752280,1782779461000,-2676.35995636,0.00036,120]
[426752276,1782779461000,-2500.0,0.00036,60]
[426752288,1782779461000,-167.00506337,0.00036,5]
[426752278,1782779461000,-29235.59153982,0.00036,14]
[426752296,1782779461000,-800.0,0.00036,7]
[426752289,1782779461000,-1000.0,0.00036,120]
[426752286,1782779461000,-800.0,0.00036,7]
[426752295,1782779461000,-173.0,0.00036,2]
[426752292,1782779461000,-1000.0,0.00036,120]
[426752284,1782779461000,-174.0,0.00036,2]
[426752294,1782779461000,-800.0,0.00036,7]
[426752287,1782779461000,-800.0,0.00036,7]
[426752285,1782779461000,-800.0,0.00036,7]
[426752290,1782779461000,-1000.0,0.00036,120]
[426752291,1782779461000,-1000.0,0.00036,120]
[426752377,1782779462000,-151.0,0.00036,30]
[426752367,1782779462000,-191.663466,0.00036,30]
[426752376,1782779462000,-151.0,0.00036,30]
[426752378,1782779462000,-151.0,0.00036,30]
[426752375,1782779462000,-151.0,0.00036,30]
[426752360,1782779462000,-191.663466,0.00036,30]
[426752357,1782779462000,-151.0,0.00036,30]
[426752365,1782779462000,-160.0,0.00036,10]
[426752361,1782779462000,-173.753751,0.00036,30]
[426752358,1782779462000,-173.753751,0.00036,30]
[426752355,1782779462000,-151.0,0.00036,30]
[426752374,1782779462000,-151.0,0.00036,30]
[426752359,1782779462000,-173.753751,0.00036,30]
[426752366,1782779462000,-160.0,0.00036,10]
[426752385,1782779462000,-151.0,0.00036,30]
[426752370,1782779462000,-417.0192,0.00036,30]
[426752371,1782779462000,-151.0,0.00036,30]
[426752369,1782779462000,-151.0,0.00036,30]
[426752372,1782779462000,-417.0192,0.00036,30]
[426752373,1782779462000,-417.0192,0.00036,30]
[426752379,1782779462000,-155.027491,0.00036,30]
[426752381,1782779462000,-151.0,0.00036,30]
[426752380,1782779462000,-151.0,0.00036,30]
[426752387,1782779462000,-361.25,0.00036,30]
[426752384,1782779462000,-161.244745,0.00036,30]
[426752388,1782779462000,-173.959143,0.00036,30]
[426752383,1782779462000,-151.0,0.00036,30]
[426752356,1782779462000,-151.0,0.00036,30]
[426752368,1782779462000,-417.0192,0.00036,30]
[426752364,1782779462000,-191.663466,0.00036,30]
[426752331,1782779462000,-151.0,0.00036,30]
[426752362,1782779462000,-191.663466,0.00036,30]
[426752389,1782779462000,-361.25,0.00036,30]
[426752326,1782779462000,-151.0,0.00036,30]
[426752327,1782779462000,-162.698519,0.00036,30]
[426752328,1782779462000,-151.0,0.00036,30]
[426752330,1782779462000,-151.0,0.00036,30]
[426752329,1782779462000,-158.56,0.00036,30]
[426752333,1782779462000,-151.0,0.00036,30]
[426752339,1782779462000,-151.0,0.00036,30]
[426752337,1782779462000,-151.0,0.00036,30]
[426752332,1782779462000,-151.0,0.00036,30]
[426752336,1782779462000,-151.0,0.00036,30]
[426752338,1782779462000,-151.0,0.00036,30]
[426752335,1782779462000,-151.0,0.00036,30]
[426752334,1782779462000,-189.188968,0.00036,30]
[426752340,1782779462000,-151.0,0.00036,30]
[426752351,1782779462000,-177.645237,0.00036,30]
[426752350,1782779462000,-151.0,0.00036,30]
[426752343,1782779462000,-151.0,0.00036,30]
[426752341,1782779462000,-151.0,0.00036,30]
[426752342,1782779462000,-151.0,0.00036,30]
[426752346,1782779462000,-192.834512,0.00036,30]
[426752347,1782779462000,-192.834512,0.00036,30]
[426752348,1782779462000,-151.0,0.00036,30]
[426752345,1782779462000,-192.834512,0.00036,30]
[426752344,1782779462000,-192.834512,0.00036,30]
[426752349,1782779462000,-151.0,0.00036,30]
[426752352,1782779462000,-177.645237,0.00036,30]
[426752354,1782779462000,-177.645237,0.00036,30]
[426752353,1782779462000,-177.645237,0.00036,30]
[426752363,1782779462000,-173.753751,0.00036,30]
[426752386,1782779462000,-151.0,0.00036,30]
[426752382,1782779462000,-151.0,0.00036,30]
[426752392,1782779462000,-8000.0,0.00036,60]
[426752421,1782779462000,-151.0,0.00036,30]
[426752425,1782779462000,-351.0897,0.00036,30]
[426752428,1782779462000,-351.0897,0.00036,30]
[426752423,1782779462000,-151.0,0.00036,30]
[426752424,1782779462000,-351.0897,0.00036,30]
[426752429,1782779462000,-151.0,0.00036,30]
[426752426,1782779462000,-151.0,0.00036,30]
[426752427,1782779462000,-151.0,0.00036,30]
[426752433,1782779462000,-151.0,0.00036,30]
[426752435,1782779462000,-273.589641,0.00036,30]
[426752436,1782779462000,-151.0,0.00036,7]
[426752444,1782779462000,-1939.673146,0.00036,30]
[426752445,1782779462000,-791.247062,0.00036,30]
[426752434,1782779462000,-151.0,0.00036,7]
[426752440,1782779462000,-1939.673146,0.00036,30]
[426752438,1782779462000,-500.0,0.00036,2]
[426752442,1782779462000,-791.247062,0.00036,30]
[426752437,1782779462000,-151.0,0.00036,30]
[426752439,1782779462000,-2546.42764753,0.00036,7]
[426752443,1782779462000,-1939.673146,0.00036,30]
[426752441,1782779462000,-1939.673146,0.00036,30]
[426752447,1782779462000,-1400.018154,0.00036,30]
[426752446,1782779462000,-791.247062,0.00036,30]
[426752449,1782779462000,-677.261571,0.00036,30]
[426752448,1782779462000,-189.166298,0.00036,30]
[426752452,1782779462000,-189.166298,0.00036,30]
[426752454,1782779462000,-154.168269,0.00036,30]
[426752453,1782779462000,-183.82229,0.00036,30]
[426752390,1782779462000,-173.959143,0.00036,30]
[426752419,1782779462000,-151.0,0.00036,30]
[426752422,1782779462000,-351.0897,0.00036,30]
[426752451,1782779462000,-791.247062,0.00036,30]
[426752431,1782779462000,-151.0,0.00036,30]
[426752432,1782779462000,-151.0,0.00036,7]
[426752402,1782779462000,-220.4,0.00036,30]
[426752404,1782779462000,-217.250615,0.00036,30]
[426752450,1782779462000,-1400.018154,0.00036,30]
[426752391,1782779462000,-361.25,0.00036,30]
[426752394,1782779462000,-175.179679,0.00036,30]
[426752396,1782779462000,-173.959143,0.00036,30]
[426752398,1782779462000,-175.179679,0.00036,30]
[426752397,1782779462000,-175.179679,0.00036,30]
[426752400,1782779462000,-220.4,0.00036,30]
[426752393,1782779462000,-173.959143,0.00036,30]
[426752399,1782779462000,-175.179679,0.00036,30]
[426752395,1782779462000,-361.25,0.00036,30]
[426752401,1782779462000,-220.4,0.00036,30]
[426752406,1782779462000,-151.0,0.00036,30]
[426752403,1782779462000,-220.4,0.00036,30]
[426752408,1782779462000,-151.0,0.00036,30]
[426752430,1782779462000,-151.0,0.00036,7]
[426752420,1782779462000,-151.0,0.00036,30]
[426752415,1782779462000,-180.308326,0.00036,30]
[426752418,1782779462000,-180.308326,0.00036,30]
[426752405,1782779462000,-217.250615,0.00036,30]
[426752410,1782779462000,-217.250615,0.00036,30]
[426752412,1782779462000,-151.0,0.00036,30]
[426752411,1782779462000,-151.0,0.00036,30]
[426752416,1782779462000,-180.308326,0.00036,30]
[426752413,1782779462000,-167.564585,0.00036,30]
[426752409,1782779462000,-151.0,0.00036,30]
[426752414,1782779462000,-152.013863,0.00036,30]
[426752407,1782779462000,-217.250615,0.00036,30]
[426752417,1782779462000,-180.308326,0.00036,30]
[426752509,1782779463000,-151.0,0.00036018,30]
[426752499,1782779463000,-174.080088,0.00036018,30]
[426752493,1782779463000,-151.0,0.00036018,30]
[426752497,1782779463000,-174.080088,0.00036018,30]
[426752492,1782779463000,-285.667842,0.00036018,30]
[426752496,1782779463000,-256.452319,0.00036018,30]
[426752494,1782779463000,-151.0,0.00036018,30]
[426752495,1782779463000,-151.0,0.00036018,30]
[426752489,1782779463000,-9481.81097779,0.00036017,7]
[426752491,1782779463000,-5199.41477544,0.00036017,7]
[426752488,1782779463000,-153944.32447489,0.00036017,7]
[426752490,1782779463000,-20797.65910178,0.00036017,7]
[426752510,1782779463000,-151.0,0.00036018,30]
[426752502,1782779463000,-256.452319,0.00036018,30]
[426752498,1782779463000,-256.452319,0.00036018,30]
[426752501,1782779463000,-174.080088,0.00036018,30]
[426752500,1782779463000,-256.452319,0.00036018,30]
[426752504,1782779463000,-327.60059,0.00036018,30]
[426752506,1782779463000,-327.60059,0.00036018,30]
[426752507,1782779463000,-327.60059,0.00036018,30]
[426752503,1782779463000,-174.080088,0.00036018,30]
[426752505,1782779463000,-327.60059,0.00036018,30]
[426752508,1782779463000,-151.0,0.00036018,30]
[426752512,1782779463000,-151.0,0.00036018,30]
[426752513,1782779463000,-151.0,0.00036018,30]
[426752514,1782779463000,-151.0,0.00036018,30]
[426752485,1782779463000,-151.0,0.00036,30]
[426752511,1782779463000,-151.0,0.00036018,30]
[426752487,1782779463000,-73549.30820112,0.00036017,7]
[426752465,1782779463000,-677.261571,0.00036,30]
[426752484,1782779463000,-498.589728,0.00036,30]
[426752515,1782779463000,-210.350694,0.00036018,30]
[426752456,1782779463000,-677.261571,0.00036,30]
[426752457,1782779463000,-183.82229,0.00036,30]
[426752455,1782779463000,-1400.018154,0.00036,30]
[426752459,1782779463000,-165.035682,0.00036,30]
[426752458,1782779463000,-189.166298,0.00036,30]
[426752463,1782779463000,-1400.018154,0.00036,30]
[426752462,1782779463000,-156.647982,0.00036,30]
[426752461,1782779463000,-154.168269,0.00036,30]
[426752469,1782779463000,-249.603525,0.00036,7]
[426752470,1782779463000,-154.168269,0.00036,30]
[426752460,1782779463000,-249.603525,0.00036,7]
[426752466,1782779463000,-189.166298,0.00036,30]
[426752467,1782779463000,-165.035682,0.00036,30]
[426752464,1782779463000,-183.82229,0.00036,30]
[426752468,1782779463000,-151.0,0.00036,30]
[426752472,1782779463000,-183.82229,0.00036,30]
[426752471,1782779463000,-677.261571,0.00036,30]
[426752483,1782779463000,-206.676237,0.00036,30]
[426752473,1782779463000,-165.035682,0.00036,30]
[426752482,1782779463000,-151.0,0.00036,30]
[426752476,1782779463000,-151.0,0.00036,30]
[426752474,1782779463000,-1365.36117117,0.00036,7]
[426752475,1782779463000,-249.603525,0.00036,7]
[426752477,1782779463000,-154.168269,0.00036,30]
[426752478,1782779463000,-165.035682,0.00036,30]
[426752481,1782779463000,-151.0,0.00036,30]
[426752480,1782779463000,-151.0,0.00036,30]
[426752479,1782779463000,-249.603525,0.00036,7]
[426752486,1782779463000,-151.0,0.00036,30]
[426752516,1782779463000,-1669.258476,0.00036018,28]
[426752521,1782779463000,-151.0,0.00036018,30]
[426752518,1782779463000,-227.750337,0.00036018,30]
[426752554,1782779463000,-553.612309,0.00036018,30]